bitfinex-derivatives/quotes_ETHF0:USTF0_20251006
["timestamp","ask_amount","ask_price","bid_price","bid_amount"]
[1759740309696,0.00191577,4561.6,4561.5,44.44965962]
[1759740321196,0.3277,4562.7,4562.6,0.7193]
[1759740321197,3.60218,4562.7,4562.6,0.7193]
[1759740321406,4.27918235,4562.7,4562.6,0.7193]
[1759740321600,4.48478235,4562.7,4562.6,0.7193]
[1759740321901,4.48478235,4562.7,4562.6,41.5193]
[1759740322102,4.48667296,4562.7,4562.6,41.5193]
[1759740325604,4.48667296,4562.7,4562.6,41.0051]
[1759740326304,5.66872079,4562.7,4562.6,41.0051]
[1759740326705,5.44572079,4562.7,4562.6,41.0051]
[1759740327003,5.66872079,4562.7,4562.6,41.0051]
[1759740327399,4.48667296,4562.7,4562.6,41.0051]
[1759740327796,4.48667296,4562.7,4562.6,41.3129]
[1759740330302,6.04122562,4562.7,4562.6,41.3129]
[1759740331206,4.48667296,4562.7,4562.6,41.3129]
[1759740331403,6.06221047,4562.7,4562.6,41.3129]
[1759740331808,4.48667296,4562.7,4562.6,41.3129]
[1759740332606,3.95237296,4562.7,4562.6,41.3129]
[1759740334409,3.95237296,4562.7,4562.6,41.41956709]
[1759740334610,3.73037296,4562.7,4562.6,41.41956709]
[1759740334811,3.95237296,4562.7,4562.6,41.3129]
[1759740335512,4.27907296,4562.7,4562.6,41.3129]
[1759740335900,3.95237296,4562.7,4562.6,41.3129]
[1759740336306,5.13413846,4562.7,4562.6,41.3129]
[1759740338210,4.91213846,4562.7,4562.6,41.3129]
[1759740338411,3.73037296,4562.7,4562.6,41.3129]
[1759740338612,0.08650053,4562.7,4562.6,41.3129]
[1759740338811,0.39432,4563.4,4562.6,41.3129]
[1759740338812,1.1817655,4563.6,4563.3,0.5665]
[1759740339008,0.94301,4563.5,4563.4,0.5665]
[1759740339407,1.07501,4563.5,4563.4,41.3665]
[1759740339714,1.0775303,4563.5,4563.4,41.3665]
[1759740342627,1.0775303,4563.5,4563.4,41.23]
[1759740345227,0.5512203,4563.5,4563.4,41.3665]
[1759740345425,0.2245203,4563.5,4563.4,41.3665]
[1759740346425,0.0025203,4563.5,4563.4,41.3665]
[1759740346728,0.2245203,4563.5,4563.4,41.3665]
[1759740347118,0.5512203,4563.5,4563.4,41.3665]
[1759740347323,0.0025203,4563.5,4563.4,41.3665]
[1759740347527,0.2245203,4563.5,4563.4,41.3665]
[1759740350530,0.6792203,4563.5,4563.4,41.3665]
[1759740350725,1.18695307,4563.5,4563.4,41.23]
[1759740351229,4.39475307,4563.5,4563.4,41.23]
[1759740351633,4.39475307,4563.5,4563.4,40.8]
[1759740351932,7.26463254,4563.5,4563.4,40.8]
[1759740352127,0.39434,4563.3,4562.7,0.1355]
[1759740352325,1.14734,4563.3,4563.2,0.2168]
[1759740352528,1.86549161,4563.3,4563.2,0.2168]
[1759740352728,1.86549161,4563.3,4563.2,41.0168]
[1759740354134,1.86549161,4563.3,4563.2,40.8]
[1759740357537,1.47115161,4563.3,4563.2,40.8]
[1759740362640,0.82175161,4563.3,4563.2,40.9355]
[1759740363028,0.49615161,4563.3,4563.2,40.9355]
[1759740363427,0.71815161,4563.3,4563.2,40.9355]
[1759740364334,0.49615161,4563.3,4563.2,40.9355]
[1759740364534,0.71815161,4563.3,4563.2,40.9355]
[1759740364840,0.49615161,4563.3,4563.2,40.9355]
[1759740365036,0.71815161,4563.3,4563.2,40.9355]
[1759740366041,0.49615161,4563.3,4563.2,40.9355]
[1759740366240,0.71815161,4563.3,4563.2,40.9355]
[1759740369343,1.04375161,4563.3,4563.2,40.9355]
[1759740370038,0.82175161,4563.3,4563.2,40.9355]
[1759740370243,1.04375161,4563.3,4563.2,40.9355]
[1759740371741,0.49615161,4563.3,4563.2,40.9355]
[1759740371941,0.71815161,4563.3,4563.2,40.9355]
[1759740372341,1.40473355,4563.3,4563.2,40.9355]
[1759740372544,1.67888516,4563.3,4563.2,40.9355]
[1759740372746,1.40473355,4563.3,4563.2,40.9355]
[1759740372944,1.90088516,4563.3,4563.2,40.9355]
[1759740373647,1.67888516,4563.3,4563.2,40.9355]
[1759740373848,1.40473355,4563.3,4563.2,40.9355]
[1759740374049,1.90088516,4563.3,4563.2,40.9355]
[1759740375749,2.00448516,4563.3,4563.2,40.9355]
[1759740375951,2.22648516,4563.3,4563.2,40.9355]
[1759740376750,2.00448516,4563.3,4563.2,40.9355]
[1759740376953,2.22548516,4563.3,4563.2,40.9355]
[1759740377845,2.00448516,4563.3,4563.2,40.9355]
[1759740378047,2.22548516,4563.3,4563.2,40.9355]
[1759740378851,2.00448516,4563.3,4563.2,40.9355]
[1759740379051,2.22548516,4563.3,4563.2,40.9355]
[1759740380146,1.89988516,4563.3,4563.2,40.9355]
[1759740380346,1.67888516,4563.3,4563.2,40.9355]
[1759740380548,2.21758516,4563.3,4563.2,41.32984]
[1759740380951,1.99658516,4563.3,4563.2,41.32984]
[1759740381254,2.21758516,4563.3,4563.2,41.32984]
[1759740381956,0.81385161,4563.3,4563.2,41.32984]
[1759740382156,1.03485161,4563.3,4563.2,40.9355]
[1759740383557,1.42918161,4563.3,4563.2,40.8]
[1759740384255,1.42918161,4563.3,4563.2,40.9361]
[1759740384761,1.03485161,4563.3,4563.2,40.9361]
[1759740385459,1.03485161,4563.3,4563.2,41.33044]
[1759740385959,1.03485161,4563.3,4563.2,40.9361]
[1759740386259,1.03485161,4563.3,4563.2,41.33044]
[1759740386462,1.03485161,4563.3,4563.2,40.9361]
[1759740389162,0.81385161,4563.3,4563.2,40.9361]
[1759740389352,1.03485161,4563.3,4563.2,40.9361]
[1759740390155,0.81385161,4563.3,4563.2,40.9361]
[1759740390355,1.03485161,4563.3,4563.2,40.9361]
[1759740391257,0.81385161,4563.3,4563.2,40.9361]
[1759740391558,1.03485161,4563.3,4563.2,40.9361]
[1759740392866,0.49615161,4563.3,4563.2,40.9361]
[1759740393061,0.0025203,4563.5,4563.3,0.81803]
[1759740393266,0.49636627,4563.4,4563.3,0.81803]
[1759740393765,0.49636627,4563.4,4563.3,41.75413]
[1759740395063,0.49624114,4563.4,4563.3,41.75463]
[1759740403466,0.80784114,4563.4,4563.3,41.75463]
[1759740404362,0.80784114,4563.4,4563.3,41.61803]
[1759740405261,0.80784114,4563.4,4563.3,41.2237]
[1759740405465,1.20216114,4563.4,4563.3,41.2237]
[1759740406166,0.80784114,4563.4,4563.3,41.2237]
[1759740410974,0.80761006,4563.4,4563.3,41.2237]
[1759740411374,0.80761006,4563.4,4563.3,41.3598]
[1759740411574,0.80761006,4563.4,4563.3,41.2237]
[1759740412975,0.80761006,4563.4,4563.3,41.3598]
[1759740414372,0.49601006,4563.4,4563.3,41.5808]
[1759740414673,0.68168289,4563.9,4563.8,0.82139]
[1759740414874,3.5194,4564.6,4564.5,0.4271]
[1759740415078,3.5194,4564.6,4564.5,0.5632]
[1759740415276,3.7339,4564.6,4564.5,41.2271]
[1759740415684,3.73626287,4564.6,4564.5,41.2271]
[1759740417173,3.21016287,4564.6,4564.5,41.3632]
[1759740417378,3.52176287,4564.6,4564.5,41.3632]
[1759740419387,3.74276287,4564.6,4564.5,41.3632]
[1759740420388,1.70013751,4565.5,4565.1,0.4271]
[1759740420389,3.5194,4565.2,4565.1,0.4271]
[1759740420587,2.06938949,4566.0,4565.3,0.5632]
[1759740420588,0.3116,4565.4,4565.3,0.5632]
[1759740420785,0.5326,4565.4,4565.3,0.5632]
[1759740420986,0.3116,4565.4,4565.3,0.5632]
[1759740421182,0.3116,4565.4,4565.3,41.3632]
[1759740421382,0.53458306,4565.4,4565.3,41.36531459]
[1759740422083,0.3116,4566.9,4566.8,0.39402]
[1759740422284,3.2078,4567.3,4567.2,0.7532]
[1759740422982,3.43136923,4567.3,4567.2,41.5532]
[1759740424288,3.74296923,4567.3,4567.2,41.5532]
[1759740424489,3.43136923,4567.3,4567.2,41.5532]
[1759740425193,3.74296923,4567.3,4567.2,41.5532]
[1759740425387,3.52196923,4567.3,4567.2,41.5532]
[1759740425687,3.21036923,4567.3,4567.2,41.5532]
[1759740426483,3.21036923,4567.3,4567.2,41.7742]
[1759740428789,3.43136923,4567.3,4567.2,41.7742]
[1759740428988,3.43136923,4567.3,4567.2,41.5532]
[1759740429190,3.21036923,4567.3,4567.2,41.5532]
[1759740431396,3.74296923,4567.3,4567.2,41.2272]
[1759740433998,3.74296923,4567.3,4567.2,41.5532]
[1759740434386,3.21036923,4567.3,4567.2,41.5532]
[1759740434695,3.43136923,4567.3,4567.2,41.5532]
[1759740436598,3.74296923,4567.3,4567.2,41.5532]
[1759740436793,3.52196923,4567.3,4567.2,41.5532]
[1759740437101,3.74296923,4567.3,4567.2,41.5532]
[1759740439602,3.74296923,4567.3,4567.2,41.2272]
[1759740440395,3.74296923,4567.3,4567.2,41.544]
[1759740441601,3.74296923,4567.3,4567.2,41.1168]
[1759740447504,4.22782427,4567.3,4567.2,41.1168]
[1759740447705,4.22682427,4567.3,4567.2,41.1168]
[1759740448097,4.00682427,4567.3,4567.2,41.1168]
[1759740448401,3.69522427,4567.3,4567.2,41.1168]
[1759740448603,3.91522427,4567.3,4567.2,41.1168]
[1759740449400,0.70742427,4567.3,4567.2,41.1168]
[1759740451109,0.48742427,4567.3,4567.2,41.1168]
[1759740451309,0.70742427,4567.3,4567.2,41.1168]
[1759740452503,0.48742427,4567.3,4567.2,41.1168]
[1759740452702,0.70742427,4567.3,4567.2,41.1168]
[1759740453308,0.48742427,4567.3,4567.2,41.1168]
[1759740453904,0.48742427,4567.3,4567.2,41.3368]
[1759740459609,0.48742427,4567.3,4567.2,41.1168]
[1759740459814,1.01732427,4567.3,4567.2,41.1168]
[1759740462703,1.01732427,4567.3,4566.4,0.98514]
[1759740462704,0.4286,4566.7,4566.6,0.7439]
[1759740462908,1.83739504,4566.7,4566.6,0.7439]
[1759740463113,3.0193957,4566.7,4566.6,0.7439]
[1759740463313,2.6253557,4566.7,4566.6,41.5439]
[1759740465107,1.44335504,4566.7,4566.6,41.5439]
[1759740465909,1.44335504,4566.7,4566.6,40.8]
[1759740466109,1.44335504,4566.7,4566.0,3.5414]
[1759740466110,1.13259,4566.1,4566.0,3.4138]
[1759740466304,1.35259,4566.1,4566.0,3.4138]
[1759740466507,3.01851322,4566.1,4566.0,3.4138]
[1759740466909,6.22631322,4566.1,4566.0,0.206]
[1759740467111,1.13261,4565.8,4565.7,0.206]
[1759740467306,0.60143,4565.6,4565.5,0.206]
[1759740467512,1.61748504,4565.6,4565.5,0.4103]
[1759740467709,1.61748504,4565.6,4565.5,41.5439]
[1759740469518,1.22335504,4565.6,4565.5,41.5439]
[1759740472014,0.7385,4565.6,4565.5,41.5439]
[1759740473123,0.5172,4565.6,4565.5,41.5439]
[1759740477828,0.3099,4565.6,4565.5,41.5439]
[1759740478023,3.5379,4566.1,4566.0,0.3333]
[1759740478220,4.63725367,4566.1,4566.0,0.764]
[1759740478622,4.84595367,4566.1,4566.0,0.764]
[1759740479024,4.62595367,4566.1,4566.0,0.764]
[1759740479223,4.84595367,4566.1,4566.0,0.764]
[1759740480226,5.06695367,4566.1,4566.0,0.764]
[1759740480627,4.84695367,4566.1,4566.0,0.764]
[1759740481417,5.06695367,4566.1,4566.0,0.764]
[1759740483330,5.06695367,4566.1,4566.0,0.4307]
[1759740484228,4.84695367,4566.1,4566.0,0.4307]
[1759740484427,5.06695367,4566.1,4566.0,0.4307]
[1759740485632,5.06695367,4566.1,4566.0,0.2217]
[1759740486333,4.67286367,4566.1,4566.0,0.2217]
[1759740489231,5.06695367,4566.1,4566.0,0.2217]
[1759740489935,4.67286367,4566.1,4566.0,0.2217]
[1759740490333,4.67286367,4566.1,4566.0,0.555]
[1759740490935,4.45286367,4566.1,4566.0,0.764]
[1759740491340,4.1876,4566.1,4566.0,0.764]
[1759740491537,3.9666,4566.1,4566.0,0.764]
[1759740491735,4.02428757,4566.1,4566.0,0.764]
[1759740491936,4.45298757,4566.1,4566.0,0.764]
[1759740493232,1.24518757,4566.1,4566.0,0.764]
[1759740493432,1.03648757,4566.1,4566.0,0.764]
[1759740493632,0.48638757,4566.1,4566.0,0.8874]
[1759740493834,0.3301,4566.4,4566.3,0.4307]
[1759740494036,0.5501,4566.4,4566.3,0.764]
[1759740494240,0.7068061,4566.4,4566.3,0.764]
[1759740494440,1.0369061,4566.4,4566.3,41.564]
[1759740494635,1.0369061,4566.4,4566.3,41.95807]
[1759740495439,0.8169061,4566.4,4566.3,41.95807]
[1759740495631,0.7068061,4566.4,4566.3,41.95807]
[1759740496441,0.70712219,4566.4,4566.3,41.95807]
[1759740497042,0.48712219,4566.4,4566.3,50.16587]
[1759740497441,0.22,4566.5,4566.3,49.83257]
[1759740497640,0.22,4566.5,4566.4,0.764]
[1759740498037,0.70694617,4566.5,4566.4,0.764]
[1759740498341,0.22,4566.5,4566.4,0.764]
[1759740499137,0.3171,4567.1,4566.5,0.98514]
[1759740499344,0.5306,4567.1,4567.0,0.7695]
[1759740499636,1.23729889,4567.1,4567.0,1.16351]
[1759740500235,0.80379889,4567.1,4567.0,1.16351]
[1759740500435,1.23729889,4567.1,4567.0,1.16351]
[1759740500835,1.23729889,4567.1,4567.0,41.96351]
[1759740503044,0.48669889,4567.1,4567.0,47.27941]
[1759740504246,0.00256923,4567.3,4567.2,1.16349]
[1759740504444,0.48952848,4567.3,4567.2,1.38349]
[1759740505143,0.00256923,4567.3,4567.2,1.38349]
[1759740507146,0.022,4567.9,4567.8,0.39394]
[1759740507349,0.50836499,4567.9,4567.8,1.16344]
[1759740507550,0.82546499,4567.9,4567.8,1.16344]
[1759740507950,0.82546499,4567.9,4567.8,41.96344]
[1759740508146,0.82779684,4567.9,4567.8,41.96344]
[1759740509345,1.22172684,4567.9,4567.8,41.2417]
[1759740509539,1.22172684,4567.9,4567.8,40.8]
[1759740509749,1.27538,4567.5,4567.4,0.61727]
[1759740509952,0.39399,4567.2,4567.0,0.39401]
[1759740510150,0.4369,4567.2,4567.1,40.8]
[1759740510346,0.754,4567.2,4567.1,40.8]
[1759740511346,0.754,4567.2,4567.1,41.1278]
[1759740511542,0.3171,4566.6,4566.0,3.5356]
[1759740511748,0.754,4566.1,4566.0,3.6495]
[1759740512448,0.754,4566.1,4566.0,3.9773]
[1759740513248,0.3171,4566.1,4565.5,0.22]
[1759740513453,0.754,4565.6,4565.5,0.4433]
[1759740513648,0.754,4565.6,4565.5,0.9895]
[1759740514147,0.754,4565.6,4565.5,0.7695]
[1759740516357,0.754,4565.6,4565.5,41.5695]
[1759740516856,0.754,4565.6,4565.5,41.2417]
[1759740517248,0.754,4565.6,4565.5,41.5594]
[1759740518350,0.3059,4565.9,4565.8,0.59931]
[1759740518548,0.1274,4566.5,4566.1,0.7329]
[1759740518549,0.5135,4566.2,4566.1,0.7329]
[1759740518758,1.00014895,4566.2,4566.1,0.7329]
[1759740519161,1.00014895,4566.2,4566.1,41.5329]
[1759740523467,0.5135,4566.2,4566.1,41.5329]
[1759740527472,0.39413,4565.6,4565.5,3.2078]
[1759740527670,1.11753,4565.6,4565.5,3.623]
[1759740527866,1.11753,4565.6,4565.5,0.4152]
[1759740528066,1.11753,4565.6,4565.5,0.21]
[1759740529865,1.15735,4565.4,4565.3,0.00211459]
[1759740537775,1.37735,4565.4,4565.3,0.00211459]
[1759740538280,1.15735,4565.4,4565.3,0.00211459]
[1759740538485,1.37735,4565.4,4565.3,0.21071459]
[1759740539181,1.86435613,4565.4,4565.3,0.60487459]
[1759740539383,1.47020613,4565.4,4565.3,0.60487459]
[1759740540178,1.47020613,4565.4,4565.3,0.00211459]
[1759740541084,4.35679151,4565.4,4565.3,0.00211459]
[1759740551789,9.35679151,4565.4,4565.3,0.00211459]
[1759740551989,0.89,4564.5,4564.4,3.2078]
[1759740552191,1.59700613,4564.5,4564.4,3.2078]
[1759740552590,1.99123613,4564.5,4564.4,3.2078]
[1759740552994,1.99337384,4564.5,4564.4,3.20972626]
[1759740553595,1.77337384,4564.5,4564.4,0.00192626]
[1759740553892,9.79092289,4564.5,4564.4,0.00192626]
[1759740554094,1.15752,4563.4,4563.3,40.8]
[1759740554293,1.86452613,4563.4,4563.3,40.8]
[1759740554493,1.47020613,4563.4,4563.3,40.8]
[1759740554694,1.47020613,4563.4,4563.3,41.1145]
[1759740554999,1.47020613,4563.4,4563.3,40.8]
[1759740555196,1.47020613,4563.4,4563.3,0.21099098]
[1759740555392,0.9832,4563.4,4563.3,0.21099098]
[1759740556199,0.89,4563.5,4563.4,0.4288]
[1759740556504,1.11,4563.5,4563.4,0.4288]
[1759740557198,0.89,4563.5,4563.4,0.4288]
[1759740557395,1.11,4563.5,4563.4,0.4288]
[1759740557598,1.11,4563.5,4563.4,0.7433]
[1759740557989,0.89,4563.5,4563.4,0.7433]
[1759740558195,1.11,4563.5,4563.4,0.4288]
[1759740559697,1.11,4563.5,4563.4,0.2086]
[1759740559902,1.59678906,4563.5,4563.4,0.2086]
[1759740561303,1.59678906,4563.5,4563.4,0.4226]
[1759740561499,1.59678906,4563.5,4563.4,41.549]
[1759740561898,1.11,4563.5,4563.4,41.549]
[1759740562098,0.89,4563.5,4563.4,41.549]
[1759740562293,1.11,4563.5,4563.4,41.549]
[1759740562697,0.1268,4564.0,4563.4,41.549]
[1759740562902,3.2078,4564.2,4564.0,0.7544]
[1759740562903,0.92996,4564.1,4564.0,0.7544]
[1759740563100,1.85900523,4564.1,4564.0,0.7544]
[1759740563303,4.64857996,4564.1,4564.0,0.7544]
[1759740563909,4.03431996,4564.1,4564.0,0.7544]
[1759740564206,1.24474523,4564.1,4564.0,0.7544]
[1759740564405,1.46474523,4564.1,4564.0,0.7544]
[1759740564609,0.7557,4564.1,4564.0,0.7544]
[1759740564804,0.5357,4564.1,4564.0,0.7544]
[1759740565101,0.00213771,4564.5,4564.4,1.14863]
[1759740565295,0.22213771,4564.5,4564.4,1.14863]
[1759740565501,0.22213771,4564.5,4564.4,41.94863]
[1759740565898,0.00213771,4564.5,4564.4,41.94863]
[1759740566105,0.22213771,4564.5,4564.4,41.94863]
[1759740566303,0.00213771,4564.5,4564.4,41.94863]
[1759740566499,0.00213771,4564.5,4564.4,45.15643]
[1759740566500,0.22213771,4564.5,4564.4,45.15643]
[1759740567110,0.00213771,4564.5,4564.4,45.15643]
[1759740572508,0.33373771,4564.5,4564.4,45.15643]
[1759740574212,0.00213771,4564.5,4564.4,45.15643]
[1759740575809,0.30913771,4564.5,4564.4,45.15643]
[1759740576709,0.00213771,4564.5,4564.4,45.15643]
[1759740577306,0.30913771,4564.5,4564.4,45.15643]
[1759740577504,0.00213771,4564.5,4564.4,45.15643]
[1759740583607,0.30913771,4564.5,4564.4,4.35643]
[1759740583917,1.27326771,4564.5,4564.4,3.4218]
[1759740584112,1.76021866,4564.5,4564.4,3.2078]
[1759740586718,1.98021866,4564.5,4564.4,3.2078]
[1759740586916,0.82909,4563.8,4563.7,3.4128]
[1759740587218,1.35609,4563.8,4563.7,3.4128]
[1759740588117,0.9618,4563.8,4563.7,4.35369]
[1759740588317,0.5541,4564.1,4564.0,0.4307]
[1759740588519,1.46834321,4564.1,4564.0,0.7586]
[1759740591222,1.46834321,4564.1,4564.0,0.212]
[1759740594026,1.46834321,4564.1,4564.0,0.5399]
[1759740594226,1.46834321,4564.1,4564.0,0.7586]
[1759740594926,1.24834321,4564.1,4564.0,0.7586]
[1759740595227,1.46834321,4564.1,4564.0,0.7586]
[1759740595830,1.04134321,4564.1,4564.0,0.7586]
[1759740596027,1.26134321,4564.1,4564.0,0.7586]
[1759740598624,0.48724321,4564.1,4564.0,0.8819]
[1759740599228,0.22,4564.3,4564.2,0.7586]
[1759740599428,0.70739385,4564.3,4564.2,0.7586]
[1759740599630,0.82179385,4564.3,4564.2,0.7586]
[1759740600531,1.04149385,4564.3,4564.2,0.7586]
[1759740601529,0.48739385,4564.3,4564.2,0.7586]
[1759740601727,0.00213771,4564.5,4564.4,0.7586]
[1759740601928,0.8239523,4564.5,4564.4,0.7586]
[1759740602231,0.8239523,4564.5,4564.4,41.5586]
[1759740602232,1.0436523,4564.5,4564.4,41.5586]
[1759740602533,0.4895523,4564.5,4564.4,41.5586]
[1759740603429,0.3344,4565.4,4565.3,0.7586]
[1759740603628,0.3344,4565.8,4565.6,0.39413]
[1759740603826,0.3344,4565.8,4565.7,0.7586]
[1759740603827,0.5541,4565.8,4565.7,0.7586]
[1759740604036,0.5541,4565.8,4565.7,1.15272]
[1759740604234,0.5541,4565.8,4565.7,41.95272]
[1759740604435,0.55598931,4565.8,4565.7,41.95272]
[1759740605233,0.55598931,4565.8,4565.7,41.5586]
[1759740608144,0.55598931,4565.8,4565.7,40.8]
[1759740610145,0.55598931,4565.8,4565.1,3.2078]
[1759740610345,0.2197,4565.2,4565.1,3.6385]
[1759740610546,0.7741,4565.2,4565.1,3.9664]
[1759740610748,0.7741,4565.2,4565.1,44.7664]
[1759740611249,1.16826,4565.2,4565.1,44.7664]
[1759740612146,0.7741,4565.2,4565.1,44.7664]
[1759740614554,0.7741,4565.2,4565.1,41.5586]
[1759740615455,1.25807046,4565.2,4565.1,41.5586]
[1759740616155,0.22,4565.2,4565.1,44.7664]
[1759740616550,0.3344,4565.5,4565.4,0.7586]
[1759740616745,0.22,4565.5,4565.4,0.7586]
[1759740616949,0.70391394,4565.5,4565.4,0.7586]
[1759740617155,0.48391394,4565.5,4565.4,0.7586]
[1759740619153,0.48391394,4565.5,4565.4,41.5586]
[1759740622069,0.39599931,4565.8,4565.7,0.7616]
[1759740622362,1.41600996,4565.8,4565.7,1.15572]
[1759740624164,1.62120996,4565.8,4565.7,0.7616]
[1759740629060,1.22709996,4565.8,4565.7,0.7616]
[1759740631968,2.80099903,4565.8,4565.7,0.7616]
[1759740632568,1.62120996,4565.8,4565.7,0.7616]
[1759740635769,1.62120996,4565.8,4565.7,1.15572]
[1759740636167,1.62120996,4565.8,4565.7,0.7616]
[1759740637473,1.84120996,4565.8,4565.7,1.15572]
[1759740638274,1.84120996,4565.8,4565.7,0.7616]
[1759740638671,1.84120996,4565.8,4565.7,1.15572]
[1759740638975,1.84120996,4565.8,4565.7,0.7616]
[1759740639176,1.84120996,4565.8,4565.7,1.15572]
[1759740639871,0.39414,4565.5,4565.4,40.8]
[1759740640174,1.32845065,4565.5,4565.4,40.8]
[1759740640371,2.51097391,4565.5,4565.4,40.8]
[1759740640572,0.93431065,4565.5,4564.6,3.2078]
[1759740640780,1.15201,4564.7,4564.6,3.4212]
[1759740640974,1.63462065,4564.7,4564.6,3.4212]
[1759740641167,1.63462065,4564.7,4564.6,44.5556]
[1759740647884,1.63462065,4564.7,4564.6,3.9783]
[1759740648684,1.63462065,4564.7,4564.6,3.4212]
[1759740648986,1.63462065,4564.7,4564.6,3.2078]
[1759740650179,1.63462065,4564.7,4563.7,0.22]
[1759740650180,1.24041065,4564.7,4563.8,0.3116]
[1759740650384,0.5453,4564.0,4563.9,0.7404]
[1759740650585,0.7653,4564.0,4563.9,41.5404]
[1759740651085,1.0789,4564.0,4563.9,41.5404]
[1759740652283,0.7328,4563.8,4563.7,3.2078]
[1759740652985,1.21677654,4563.8,4563.7,3.2078]
[1759740653384,0.52041,4563.5,4563.4,40.8]
[1759740653586,1.05401,4563.5,4563.4,40.8]
[1759740656794,4.26181,4563.5,4563.4,40.8]
[1759740656993,0.4192,4563.4,4563.3,0.00239098]
[1759740657294,0.7328,4563.4,4563.3,0.22409098]
[1759740657492,0.7328,4563.4,4563.3,41.02409098]
[1759740661085,0.7328,4563.4,4563.3,41.33569098]
[1759740665990,3.56278263,4563.4,4563.3,0.22409098]
[1759740666189,3.56278263,4563.4,4563.3,0.00239098]
[1759740666593,0.92127,4562.8,4562.7,0.76137604]
[1759740666892,1.34717,4562.8,4562.7,0.02097604]
[1759740667389,1.12722,4562.2,4562.1,40.8]
[1759740667595,0.95441136,4562.2,4562.1,0.2183]
[1759740667783,0.95441136,4562.2,4562.1,0.22075638]
[1759740668188,4.22766814,4562.2,4562.1,0.22075638]
[1759740668387,4.22766814,4562.2,4562.1,0.00245638]
[1759740668788,4.22766814,4562.2,4561.4,0.2183]
[1759740668789,1.25338,4561.5,4561.4,0.2183]
[1759740668989,1.47338,4561.5,4561.4,0.4254]
[1759740669294,3.49742049,4561.5,4561.4,0.4254]
[1759740669486,0.3136,4561.7,4561.6,0.4254]
[1759740669690,0.5336,4561.7,4561.6,0.56417781]
[1759740670595,0.3136,4561.7,4561.6,0.56417781]
[1759740670798,0.3136,4561.9,4561.8,0.39445]
[1759740670997,0.31521136,4562.2,4562.1,0.5618]
[1759740671193,3.2078,4562.9,4562.8,0.5576]
[1759740671394,0.92123,4563.3,4563.2,0.4228]
[1759740671694,3.63622392,4563.3,4563.2,0.4228]
[1759740671886,0.7469,4563.3,4563.2,0.4228]
[1759740672088,1.22894298,4563.3,4563.2,0.4228]
[1759740672288,1.23086785,4563.3,4563.2,0.4228]
[1759740672490,1.01086785,4563.3,4563.2,0.4228]
[1759740672693,1.23086785,4563.3,4563.2,0.4228]
[1759740673097,1.01756785,4563.3,4563.2,0.5576]
[1759740673795,1.23086785,4563.3,4563.2,0.5576]
[1759740674096,1.01086785,4563.3,4563.2,0.4228]
[1759740674397,1.23086785,4563.3,4563.2,0.4228]
[1759740674598,1.23086785,4563.3,4563.2,0.5576]
[1759740675292,1.43676785,4563.3,4563.2,0.4228]
[1759740675493,0.70794,4563.2,4563.1,40.8]
[1759740675695,1.40998298,4563.2,4563.1,40.8]
[1759740678303,1.40998298,4563.2,4563.1,40.9348]
[1759740680005,1.40998298,4563.2,4563.1,40.8]
[1759740680798,1.14149,4562.6,4562.5,3.6392]
[1759740681001,1.84353298,4562.6,4562.5,3.6392]
[1759740681206,1.62053298,4562.6,4562.5,44.574]
[1759740681399,1.19693298,4562.6,4562.5,44.574]
[1759740681604,0.48204298,4562.6,4562.5,44.574]
[1759740681795,0.3205,4563.2,4562.8,0.1348]
[1759740681998,0.7034778,4563.1,4563.0,0.4314]
[1759740682212,1.0239778,4563.1,4563.0,0.5662]
[1759740682713,1.0239778,4563.1,4563.0,0.96055]
[1759740683209,1.2275778,4563.1,4563.0,0.96055]
[1759740683403,1.2275778,4563.1,4563.0,0.82575]
[1759740683605,1.0075778,4563.1,4563.0,0.82575]
[1759740683807,1.2305778,4563.1,4563.0,0.82575]
[1759740684311,1.4505778,4563.1,4563.0,0.82575]
[1759740684512,1.2305778,4563.1,4563.0,0.82575]
[1759740684710,1.4505778,4563.1,4563.0,0.82575]
[1759740685009,0.8039778,4563.1,4563.0,0.96055]
[1759740685202,1.0239778,4563.1,4563.0,0.96055]
[1759740685606,0.8039778,4563.1,4563.0,0.96055]
[1759740685810,1.2275778,4563.1,4563.0,0.96055]
[1759740686107,1.0075778,4563.1,4563.0,0.96055]
[1759740686306,1.2275778,4563.1,4563.0,0.96055]
[1759740686602,0.4834778,4563.1,4563.0,0.96055]
[1759740686803,0.7034778,4563.1,4563.0,1.02795]
[1759740687012,0.00192487,4563.3,4563.2,0.82574]
[1759740687306,0.00192487,4563.3,4563.2,41.76054]
[1759740688200,0.138,4563.9,4563.2,41.3662]
[1759740688509,0.138,4563.9,4563.8,0.95239]
[1759740689203,0.138,4563.9,4563.8,41.75239]
[1759740689509,0.46089146,4563.9,4563.8,41.75239]
[1759740692212,0.94419272,4563.9,4563.8,41.75239]
[1759740693412,0.46089146,4563.9,4563.8,41.75239]
[1759740693711,0.94405894,4563.9,4563.8,41.75239]
[1759740694117,0.46089146,4563.9,4563.8,41.75239]
[1759740695511,0.32289146,4563.9,4563.8,41.75239]
[1759740695913,0.00239146,4563.9,4563.8,41.75239]
[1759740696102,0.00239146,4563.9,4563.8,46.75239]
[1759740700512,0.31539146,4563.9,4563.8,46.75239]
[1759740700813,0.00239146,4563.9,4563.8,46.75239]
[1759740702415,0.00239146,4563.9,4563.8,41.75239]
[1759740711829,0.00239146,4563.9,4563.8,44.96019]
[1759740712627,0.31399146,4563.9,4563.8,44.96019]
[1759740715731,0.00239146,4563.9,4563.8,44.96019]
[1759740717627,0.31399146,4563.9,4563.8,44.96019]
[1759740721727,1.46e-06,4563.9,4563.8,44.96019]
[1759740721932,3.3368,4565.0,4564.9,0.39419]
[1759740722133,4.35039527,4565.0,4564.9,0.81279]
[1759740722432,4.35039527,4565.0,4564.9,0.94579]
[1759740722631,4.35039527,4565.0,4564.9,41.74579]
[1759740723034,4.35217397,4565.0,4564.9,41.74856741]